[Event "18th IND-chT Women 2020"]
[Site "Ahmedabad"]
[Date "2020.02.10"]
[Round "2.8"]
[White "Harshini B"]
[Black "Ramaswamy, Aarthie"]
[Result "0-1"]
[ECO "E11"]
[WhiteElo "1603"]
[BlackElo "2072"]
[Annotator "NA RC"]
[PlyCount "106"]
[EventDate "2020.02.05"]
[EventCountry "IND"]
[SourceTitle "playchess.com"]
[Source "ChessBase"]
[SourceQuality "1"]
[TimeControl "5400+30"]

1. d4 {[%emt 0:00:00]} Nf6 {[%emt 0:00:00]} 2. c4 {[%emt 0:00:30]} e6 {[%emt 0:00:30]} 3. g3 {[%emt 0:00:30]} Bb4+ {[%emt 0:00:30]} 4. Bd2 {[%emt 0:00:30]} a5 {[%emt 0:00:30]} 5. Bg2 {[%emt 0:00:30]} d5 {[%emt 0:00:30]} 6. Nf3 {[%emt 0:00:30]} O-O {[%emt 0:00:30]} 7. O-O {[%emt 0:00:30]} c6 {[%emt 0:00:30]} 8. Qc2 {[%emt 0:00:30]} Nbd7 {[%emt 0:00:30]} 9. b3 {[%emt 0:00:30]} Re8 {[%emt 0:00:30]} 10. Bc3 {[%emt 0:00:30]} Ne4 {[%emt 0:00:30]} 11. Bb2 {[%emt 0:00:30]} Bf8 {[%emt 0:00:30]} 12. Nbd2 {[%emt 0:00:30]} f5 {[%emt 0:00:30]} 13. Rfd1 {[%emt 0:00:30]} Qf6 {[%emt 0:00:30]} 14. Ne5 {[%emt 0:00:30]} Nxe5 {[%emt 0:00:30]} 15. dxe5 {[%emt 0:00:30]} Qh6 {[%emt 0:00:30]} 16. Bc1 {[%emt 0:00:30]} Nxf2 {[%emt 0:00:30]} 17. Nf3 {[%emt 0:00:30]} Nh3+ {[%emt 0:00:30]} 18. Kf1 {[%emt 0:00:30]} Qh5 {[%emt 0:00:30]} 19. Be3 {[%emt 0:00:30]} h6 {[%emt 0:00:30]} 20. Qd2 {[%emt 0:00:30]} Be7 {[%emt 0:00:30]} 21. Bxh3 {[%emt 0:00:30]} Qxh3+ {[%emt 0:00:30]} 22. Kg1 {[%emt 0:00:30]} Qg4 {[%emt 0:00:30]} 23. Qd4 {[%emt 0:00:30]} Qxd4 {[%emt 0:00:30]} 24. Nxd4 {[%emt 0:00:30]} Bd7 {[%emt 0:00:30]} 25. cxd5 {[%emt 0:00:30]} cxd5 {[%emt 0:00:30]} 26. Rac1 {[%emt 0:00:30]} Rec8 {[%emt 0:00:30]} 27. Rxc8+ {[%emt 0:00:30]} Rxc8 {[%emt 0:00:30]} 28. Rc1 {[%emt 0:00:30]} Rxc1+ {[%emt 0:00:30]} 29. Bxc1 {[%emt 0:00:30]} Kf7 {[%emt 0:00:30]} 30. Kf2 {[%emt 0:00:30]} Bd8 {[%emt 0:00:30]} 31. Bb2 {[%emt 0:00:30]} Bc7 {[%emt 0:00:30]} 32. Nf3 {[%emt 0:00:30]} g5 {[%emt 0:00:30]} 33. h3 {[%emt 0:00:30]} Kg6 {[%emt 0:00:30]} 34. Bc3 {[%emt 0:00:30]} Bb6+ {[%emt 0:00:30]} 35. Kg2 {[%emt 0:00:30]} a4 {[%emt 0:00:30]} 36. Bd4 {[%emt 0:00:30]} Bc7 {[%emt 0:00:30]} 37. b4 {[%emt 0:00:30]} Bb5 {[%emt 0:00:30]} 38. Kf2 {[%emt 0:00:30]} g4 {[%emt 0:00:30]} 39. hxg4 {[%emt 0:00:30]} fxg4 {[%emt 0:00:30]} 40. Nh4+ {[%emt 0:00:30]} Kf7 {[%emt 0:00:30]} 41. Ke3 {[%emt 0:00:30]} Bd8 {[%emt 0:00:30]} 42. Kf2 {[%emt 0:00:30]} a3 {[%emt 0:00:30]} 43. Bc3 {[%emt 0:00:30]} Bc4 {[%emt 0:00:30]} 44. Bd2 {[%emt 0:00:30]} Bb6+ {[%emt 0:00:30]} 45. e3 {[%emt 0:00:30]} d4 {[%emt 0:00:30]} 46. Ng2 {[%emt 0:00:30]} Bxa2 {[%emt 0:00:30]} 47. Bc1 {[%emt 0:00:30]} Bd5 {[%emt 0:00:30]} 48. Bxa3 {[%emt 0:00:30]} Bxg2 {[%emt 0:00:30]} 49. Kxg2 {[%emt 0:00:30]} dxe3 {[%emt 0:00:30]} 50. Kf1 {[%emt 0:00:30]} Kg6 {[%emt 0:00:30]} 51. b5 {[%emt 0:00:30]} Kf5 {[%emt 0:00:30]} 52. Bd6 {[%emt 0:00:30]} Ke4 {[%emt 0:00:30]} 53. Ke2 {[%emt 0:00:30]} Bd4 {[%emt 0:00:30]} 0-1

[Event "18th IND-chT Women 2020"]
[Site "Ahmedabad"]
[Date "2020.02.10"]
[Round "2.9"]
[White "Anupam M Sreekumar"]
[Black "Michelle Catherina, P."]
[Result "1/2-1/2"]
[ECO "A07"]
[WhiteElo "1745"]
[BlackElo "2175"]
[Annotator "RC"]
[PlyCount "64"]
[EventDate "2020.02.05"]
[EventCountry "IND"]
[SourceTitle "playchess.com"]
[Source "ChessBase"]
[SourceQuality "1"]
[TimeControl "5400+30"]

1. Nf3 d5 2. g3 g6 3. Bg2 Bg7 4. O-O e5 5. d3 Ne7 6. e4 O-O 7. Nc3 dxe4 8. dxe4 Be6 9. Qxd8 Rxd8 10. Be3 Nbc6 11. Rfd1 h6 12. Nb5 Rdc8 13. Nd2 a6 14. Na3 Rd8 15. Nb3 b6 16. Bf1 Nd4 17. c3 Nxb3 18. axb3 Bxb3 19. Rxd8+ Rxd8 20. Bxa6 f5 21. f3 Kf7 22. Kf2 Ke6 23. Bc4+ Bxc4 24. Nxc4 Nc6 25. Ke2 Bf6 26. Ra6 h5 27. Na3 Rd7 28. Nb5 Na5 29. Ra7 Bd8 30. Na3 Be7 31. Nb5 Bd8 32. Na3 Be7 1/2-1/2

[Event "18th IND-chT Women 2020"]
[Site "Ahmedabad"]
[Date "2020.02.10"]
[Round "2.10"]
[White "Varshini, V."]
[Black "Anjitha Krishnakumar"]
[Result "1-0"]
[ECO "B84"]
[WhiteElo "2242"]
[BlackElo "1444"]
[Annotator "RC"]
[PlyCount "57"]
[EventDate "2020.02.05"]
[EventCountry "IND"]
[SourceTitle "playchess.com"]
[Source "ChessBase"]
[SourceQuality "1"]
[TimeControl "5400+30"]

1. e4 {[%emt 0:00:00]} c5 {[%emt 0:00:00]} 2. Nc3 {[%emt 0:00:30]} d6 {[%emt 0:00:30]} 3. Nge2 {[%emt 0:00:30]} Nf6 {[%emt 0:00:30]} 4. d4 {[%emt 0:00:30]} cxd4 {[%emt 0:00:30]} 5. Nxd4 {[%emt 0:00:30]} e6 {[%emt 0:00:30]} 6. Be2 {[%emt 0:00:30]} Be7 {[%emt 0:00:30]} 7. O-O {[%emt 0:00:30]} a6 {[%emt 0:00:30]} 8. a4 {[%emt 0:00:30]} b6 {[%emt 0:00:30]} 9. f4 {[%emt 0:00:30]} Bb7 {[%emt 0:00:30]} 10. Bf3 {[%emt 0:00:30]} Qc7 {[%emt 0:00:30]} 11. e5 {[%emt 0:00:30]} dxe5 {[%emt 0:00:30]} 12. fxe5 {[%emt 0:00:30]} Nfd7 {[%emt 0:00:30]} 13. Bf4 {[%emt 0:00:30]} Nc6 {[%emt 0:00:30]} 14. Nxc6 {[%emt 0:00:30]} Bxc6 {[%emt 0:00:30]} 15. Bxc6 {[%emt 0:00:30]} Qxc6 {[%emt 0:00:30]} 16. Qg4 {[%emt 0:00:30]} O-O-O {[%emt 0:00:30]} 17. Qe2 {[%emt 0:00:30]} Kb7 {[%emt 0:00:30]} 18. Bg3 {[%emt 0:00:30]} f5 {[%emt 0:00:30]} 19. exf6 {[%emt 0:00:30]} gxf6 {[%emt 0:00:30]} 20. Rad1 {[%emt 0:00:30]} e5 {[%emt 0:00:30]} 21. Nd5 {[%emt 0:00:30]} Bc5+ {[%emt 0:00:30]} 22. Kh1 {[%emt 0:00:30]} Bd4 {[%emt 0:00:30]} 23. Nb4 {[%emt 0:00:30]} Qxa4 {[%emt 0:00:30]} 24. Qe4+ {[%emt 0:00:30]} Kc8 {[%emt 0:00:30]} 25. Rxd4 {[%emt 0:00:30]} exd4 {[%emt 0:00:30]} 26. Qa8+ {[%emt 0:00:30]} Nb8 {[%emt 0:00:30]} 27. Qxb8+ {[%emt 0:00:30]} Kd7 {[%emt 0:00:30]} 28. Qd6+ {[%emt 0:00:30]} Ke8 {[%emt 0:00:30]} 29. Qe6+ {[%emt 0:00:30]} 1-0

[Event "18th IND-chT Women 2020"]
[Site "Ahmedabad"]
[Date "2020.02.10"]
[Round "2.12"]
[White "Mahalakshmi, M."]
[Black "Prajeesha K"]
[Result "1-0"]
[ECO "A52"]
[WhiteElo "2255"]
[BlackElo "1417"]
[Annotator "RC"]
[PlyCount "73"]
[EventDate "2020.02.05"]
[EventCountry "IND"]
[SourceTitle "playchess.com"]
[Source "ChessBase"]
[SourceQuality "1"]
[TimeControl "5400+30"]

1. d4 Nf6 2. c4 e5 3. dxe5 Ng4 4. Bf4 Nc6 5. Nf3 Bb4+ 6. Nc3 Qe7 7. Qd5 Bxc3+ 8. bxc3 Qa3 9. Rc1 Qxa2 10. h3 Nh6 11. Nd4 Ne7 12. Qc5 c6 13. e4 b6 14. Qd6 Ba6 15. Bg5 Nhg8 16. Rd1 Qa5 17. Nb5 Rd8 18. Nc7+ Kf8 19. Nxa6 Qxa6 20. Be2 Qa5 21. O-O f6 22. Bxf6 Qc5 23. Qxc5 bxc5 24. Bg5 Kf7 25. Bg4 h6 26. Be3 h5 27. Bxd7 Nh6 28. Bxc5 a6 29. e6+ Kf8 30. Bxc6 Rc8 31. Rd7 Nhg8 32. Rfd1 g5 33. Rd8+ Kg7 34. Rxc8 Nxc8 35. Rd7+ Kg6 36. Rd8 Nge7 37. Rxh8 1-0

[Event "18th IND-chT Women 2020"]
[Site "Ahmedabad"]
[Date "2020.02.10"]
[Round "3.1"]
[White "Gomes, Mary Ann"]
[Black "Priyanka Nutakki"]
[Result "1/2-1/2"]
[ECO "E05"]
[WhiteElo "2344"]
[BlackElo "2212"]
[Annotator "RC"]
[PlyCount "86"]
[EventDate "2020.02.05"]
[EventCountry "IND"]
[SourceTitle "playchess.com"]
[Source "ChessBase"]
[SourceQuality "1"]
[TimeControl "5400+30"]

1. Nf3 {[%emt 0:00:00]} d5 {[%emt 0:00:00]} 2. g3 {[%emt 0:00:30]} Nf6 {[%emt 0:00:30]} 3. Bg2 {[%emt 0:00:30]} e6 {[%emt 0:00:30]} 4. c4 {[%emt 0:00:30]} Be7 {[%emt 0:00:30]} 5. O-O {[%emt 0:00:30]} O-O {[%emt 0:00:30]} 6. d4 {[%emt 0:00:30]} dxc4 {[%emt 0:00:30]} 7. Qc2 {[%emt 0:00:30]} a6 {[%emt 0:00:30]} 8. a4 {[%emt 0:00:30]} Bd7 {[%emt 0:00:30]} 9. Bg5 {[%emt 0:00:30]} Bc6 {[%emt 0:00:30]} 10. Rd1 {[%emt 0:00:30]} Be4 {[%emt 0:00:30]} 11. Qc1 {[%emt 0:00:30]} Nc6 {[%emt 0:00:30]} 12. Nbd2 {[%emt 0:00:30]} Bxf3 {[%emt 0:00:30]} 13. Nxf3 {[%emt 0:00:30]} Na5 {[%emt 0:00:30]} 14. Bxf6 {[%emt 0:00:30]} Bxf6 {[%emt 0:00:30]} 15. Ra2 {[%emt 0:00:30]} c6 {[%emt 0:00:30]} 16. e4 {[%emt 0:00:30]} b5 {[%emt 0:00:30]} 17. Qc3 {[%emt 0:00:30]} Nb3 {[%emt 0:00:30]} 18. e5 {[%emt 0:00:30]} Be7 {[%emt 0:00:30]} 19. Ne1 {[%emt 0:00:30]} Qb6 {[%emt 0:00:30]} 20. Nc2 {[%emt 0:00:30]} Rad8 {[%emt 0:00:30]} 21. a5 {[%emt 0:00:30]} Qc7 {[%emt 0:00:30]} 22. Na1 {[%emt 0:00:30]} Nc5 {[%emt 0:00:30]} 23. Nc2 {[%emt 0:00:30]} Nd3 {[%emt 0:00:30]} 24. b3 {[%emt 0:00:30]} cxb3 {[%emt 0:00:30]} 25. Qxb3 {[%emt 0:00:30]} Nxe5 {[%emt 0:00:30]} 26. Ne3 {[%emt 0:00:30]} Nd7 {[%emt 0:00:30]} 27. Rad2 {[%emt 0:00:30]} Nb8 {[%emt 0:00:30]} 28. Qc3 {[%emt 0:00:30]} Rc8 {[%emt 0:00:30]} 29. Rc2 {[%emt 0:00:30]} Rfd8 {[%emt 0:00:30]} 30. d5 {[%emt 0:00:30]} c5 {[%emt 0:00:30]} 31. Bh3 {[%emt 0:00:30]} Bf6 {[%emt 0:00:30]} 32. Qe1 {[%emt 0:00:30]} Qe5 {[%emt 0:00:30]} 33. Re2 {[%emt 0:00:30]} Qh5 {[%emt 0:00:30]} 34. Bg4 {[%emt 0:00:30]} Qg6 {[%emt 0:00:30]} 35. dxe6 {[%emt 0:00:30]} Rxd1 {[%emt 0:00:30]} 36. Qxd1 {[%emt 0:00:30]} Re8 {[%emt 0:00:30]} 37. Qd5 {[%emt 0:00:30]} fxe6 {[%emt 0:00:30]} 38. Bxe6+ {[%emt 0:00:30]} Kh8 {[%emt 0:00:30]} 39. Nf5 {[%emt 0:00:30]} Qg4 {[%emt 0:00:30]} 40. Re4 {[%emt 0:00:30]} Qg5 {[%emt 0:00:30]} 41. Qxc5 {[%emt 0:00:30]} g6 {[%emt 0:00:30]} 42. h4 {[%emt 0:00:30]} Qd2 {[%emt 0:00:30]} 43. Nd6 {[%emt 0:00:30]} Rf8 {[%emt 0:00:30]} 1/2-1/2

[Event "18th IND-chT Women 2020"]
[Site "Ahmedabad"]
[Date "2020.02.10"]
[Round "3.6"]
[White "Tania, Sachdev"]
[Black "Varshini, V."]
[Result "1-0"]
[ECO "D35"]
[WhiteElo "2397"]
[BlackElo "2242"]
[Annotator "RC"]
[PlyCount "69"]
[EventDate "2020.02.05"]
[EventCountry "IND"]
[SourceTitle "playchess.com"]
[Source "ChessBase"]
[SourceQuality "1"]
[TimeControl "5400+30"]

1. d4 d5 2. c4 e6 3. Nc3 Nf6 4. Nf3 Be7 5. Qc2 O-O 6. cxd5 exd5 7. Bf4 c6 8. h3 Re8 9. e3 Nbd7 10. Bd3 Nf8 11. O-O-O Be6 12. Kb1 Rc8 13. Rc1 b5 14. g4 a6 15. Qe2 c5 16. dxc5 Bxc5 17. Be5 Qa5 18. Bc2 N8d7 19. Bd4 Ne4 20. Bb3 Bxd4 21. Nxe4 Rxc1+ 22. Rxc1 Bxe3 23. Qxe3 dxe4 24. Bxe6 fxe6 25. Qxe4 Nf6 26. Qc6 Qd8 27. g5 Nd5 28. Qxa6 b4 29. h4 Qb8 30. Qc4 Qa7 31. Nd4 Qb6 32. Re1 Kf7 33. Rxe6 Nc3+ 34. bxc3 bxc3+ 35. Kc2 1-0

[Event "18th IND-chT Women 2020"]
[Site "Ahmedabad"]
[Date "2020.02.10"]
[Round "3.8"]
[White "Meenakshi Subbaraman"]
[Black "Mahalakshmi, M."]
[Result "0-1"]
[ECO "A47"]
[WhiteElo "2162"]
[BlackElo "2255"]
[Annotator "RC"]
[PlyCount "74"]
[EventDate "2020.02.05"]
[EventCountry "IND"]
[SourceTitle "playchess.com"]
[Source "ChessBase"]
[SourceQuality "1"]
[TimeControl "5400+30"]

1. d4 {[%emt 0:00:00]} Nf6 {[%emt 0:00:00]} 2. Nf3 {[%emt 0:00:30]} b6 {[%emt 0:00:30]} 3. Bf4 {[%emt 0:00:30]} Bb7 {[%emt 0:00:30]} 4. e3 {[%emt 0:00:30]} g6 {[%emt 0:00:30]} 5. Be2 {[%emt 0:00:30]} Bg7 {[%emt 0:00:30]} 6. Nc3 {[%emt 0:00:30]} d6 {[%emt 0:00:30]} 7. h4 {[%emt 0:00:30]} Nbd7 {[%emt 0:00:30]} 8. Qd2 {[%emt 0:00:30]} a6 {[%emt 0:00:30]} 9. a4 {[%emt 0:00:30]} c5 {[%emt 0:00:30]} 10. d5 {[%emt 0:00:30]} b5 {[%emt 0:00:30]} 11. axb5 {[%emt 0:00:30]} axb5 {[%emt 0:00:30]} 12. Rxa8 {[%emt 0:00:30]} Qxa8 {[%emt 0:00:30]} 13. Bxb5 {[%emt 0:00:30]} Nxd5 {[%emt 0:00:30]} 14. Nxd5 {[%emt 0:00:30]} Bxd5 {[%emt 0:00:30]} 15. O-O {[%emt 0:00:30]} Bxf3 {[%emt 0:00:30]} 16. gxf3 {[%emt 0:00:30]} Qxf3 {[%emt 0:00:30]} 17. Ra1 {[%emt 0:00:30]} Qg4+ {[%emt 0:00:30]} 18. Bg3 {[%emt 0:00:30]} O-O {[%emt 0:00:30]} 19. Ra4 {[%emt 0:00:30]} Qe6 {[%emt 0:00:30]} 20. b3 {[%emt 0:00:30]} Nf6 {[%emt 0:00:30]} 21. Qd3 {[%emt 0:00:30]} Nh5 {[%emt 0:00:30]} 22. Qe4 {[%emt 0:00:30]} Nxg3 {[%emt 0:00:30]} 23. fxg3 {[%emt 0:00:30]} Be5 {[%emt 0:00:30]} 24. Kg2 {[%emt 0:00:30]} d5 {[%emt 0:00:30]} 25. Qg4 {[%emt 0:00:30]} Qxg4 {[%emt 0:00:30]} 26. Rxg4 {[%emt 0:00:30]} f5 {[%emt 0:00:30]} 27. Ra4 {[%emt 0:00:30]} d4 {[%emt 0:00:30]} 28. Bc4+ {[%emt 0:00:30]} Kg7 {[%emt 0:00:30]} 29. Ra5 {[%emt 0:00:30]} dxe3 {[%emt 0:00:30]} 30. Rxc5 {[%emt 0:00:30]} Bd6 {[%emt 0:00:30]} 31. Rd5 {[%emt 0:00:30]} f4 {[%emt 0:00:30]} 32. gxf4 {[%emt 0:00:30]} Rxf4 {[%emt 0:00:30]} 33. Rd1 {[%emt 0:00:30]} Rf2+ {[%emt 0:00:30]} 34. Kg1 {[%emt 0:00:30]} Rxc2 {[%emt 0:00:30]} 35. Re1 {[%emt 0:00:30]} Bg3 {[%emt 0:00:30]} 36. Re2 {[%emt 0:00:30]} Rxe2 {[%emt 0:00:30]} 37. Bxe2 {[%emt 0:00:30]} Bxh4 {[%emt 0:00:30]} 0-1

[Event "18th IND-chT Women 2020"]
[Site "Ahmedabad"]
[Date "2020.02.10"]
[Round "4.1"]
[White "Michelle Catherina, P."]
[Black "Gomes, Mary Ann"]
[Result "0-1"]
[ECO "B42"]
[WhiteElo "2175"]
[BlackElo "2344"]
[Annotator "RC"]
[PlyCount "72"]
[EventDate "2020.02.05"]
[EventCountry "IND"]
[SourceTitle "playchess.com"]
[Source "ChessBase"]
[SourceQuality "1"]
[TimeControl "5400+30"]

1. e4 c5 2. Nf3 e6 3. d4 cxd4 4. Nxd4 a6 5. Bd3 Qc7 6. O-O Nf6 7. Qe2 d6 8. c4 g6 9. Nc3 Bg7 10. Rd1 O-O 11. Nf3 Nbd7 12. Be3 Ng4 13. Rac1 Nc5 14. Bb1 b6 15. Qd2 Rd8 16. Bf4 Bf8 17. Bg5 Re8 18. b3 Bb7 19. h4 Rac8 20. h5 Nd7 21. Ne2 Nde5 22. Nxe5 Nxe5 23. Rc3 Qc5 24. Qf4 f5 25. Qh4 Rc7 26. Rh3 Rg7 27. Nf4 Kf7 28. exf5 exf5 29. hxg6+ hxg6 30. Rg3 Ng4 31. Rxg4 fxg4 32. Nxg6 Be4 33. Nh8+ Kg8 34. Bf6 Bxb1 35. Rxb1 Qf5 36. Rd1 Rh7 0-1

[Event "18th IND-chT Women 2020"]
[Site "Ahmedabad"]
[Date "2020.02.10"]
[Round "4.4"]
[White "Mohota, Nisha"]
[Black "Mahalakshmi, M."]
[Result "1/2-1/2"]
[ECO "B11"]
[WhiteElo "2191"]
[BlackElo "2255"]
[Annotator "RC"]
[PlyCount "119"]
[EventDate "2020.02.05"]
[EventCountry "IND"]
[SourceTitle "playchess.com"]
[Source "ChessBase"]
[SourceQuality "1"]
[TimeControl "5400+30"]

1. e4 c6 2. Nc3 d5 3. Nf3 dxe4 4. Nxe4 Nf6 5. Qe2 Qd5 6. d3 Bf5 7. c4 Qa5+ 8. Bd2 Qc7 9. Ng3 Bg6 10. h4 Nh5 11. Ne4 Nd7 12. O-O-O Ndf6 13. Nxf6+ Nxf6 14. Ne5 Nd7 15. Nxg6 hxg6 16. d4 O-O-O 17. g3 e6 18. Bg2 Nf6 19. Bc3 Be7 20. Kb1 Kb8 21. Rhe1 Rhe8 22. Qf3 Bd6 23. Rd3 Ka8 24. Red1 Bf8 25. Bd2 Rd7 26. Bf4 Bd6 27. Bg5 Be7 28. c5 e5 29. Ra3 Red8 30. Rc1 Rxd4 31. Rb3 Qd7 32. Bxf6 Bxf6 33. a3 Qf5+ 34. Qxf5 gxf5 35. Rbc3 e4 36. R3c2 Kb8 37. Re2 Rd2 38. Rxd2 Rxd2 39. Rc2 Rxc2 40. Kxc2 Bd4 41. f3 e3 42. Bf1 Bxc5 43. Bc4 f6 44. Kd3 a5 45. a4 Kc7 46. Be6 f4 47. gxf4 Kd6 48. Bc4 Ke7 49. Ke4 Ba7 50. h5 Bc5 51. Kf5 Bd6 52. Ke4 Bc5 53. Kf5 Bd4 54. b3 Bc3 55. Kg6 {Kf7+ Be2+} Be1 56. Kf5 Bg3 57. Ke4 Bf2 58. Kf5 {Kg8 Kg6} Bg3 {Bc4+ Kf8 Kf5 Be1} 59. Kg6 {Bd2 Be2 Bc3 Bc4 Bd4 Be2} b6 {Bc4 Bc5} 60. Kf5 {Bb4 Ke4 Bc5 Kf5 Ba3 Ke4 Bc1 Kf5 Bd2 Be2 Bc1 Bc4 Ba3 Ke4 Bc5 Kf5} 1/2-1/2

[Event "18th IND-chT Women 2020"]
[Site "Ahmedabad"]
[Date "2020.02.10"]
[Round "4.8"]
[White "Natura Bethi"]
[Black "Meenakshi Subbaraman"]
[Result "0-1"]
[ECO "A42"]
[WhiteElo "1364"]
[BlackElo "2162"]
[Annotator "RC"]
[PlyCount "50"]
[EventDate "2020.02.05"]
[EventCountry "IND"]
[SourceTitle "playchess.com"]
[Source "ChessBase"]
[SourceQuality "1"]
[TimeControl "5400+30"]

1. d4 d6 2. c4 g6 3. Nc3 Bg7 4. e4 e5 5. d5 Ne7 6. Bd3 O-O 7. Nge2 Nd7 8. O-O f5 9. f4 exf4 10. exf5 f3 11. Nf4 fxg2 12. Kxg2 Ne5 13. Ne6 Bxe6 14. fxe6 Nf5 15. Ne4 Nh4+ 16. Kh1 Nhf3 17. Nd2 Nxh2 18. Rxf8+ Bxf8 19. Bxg6 hxg6 20. Kxh2 Qh4+ 21. Kg2 Qg5+ 22. Kh1 Be7 23. Qg1 Qh5+ 24. Qh2 Bh4 25. b3 Ng4 0-1

[Event "18th IND-chT Women 2020"]
[Site "Ahmedabad"]
[Date "2020.02.10"]
[Round "4.11"]
[White "Srija, Seshadri"]
[Black "Smaraki, Mohanty"]
[Result "1-0"]
[ECO "B01"]
[WhiteElo "2205"]
[BlackElo "1746"]
[Annotator "RC"]
[PlyCount "52"]
[EventDate "2020.02.05"]
[EventCountry "IND"]
[SourceTitle "playchess.com"]
[Source "ChessBase"]
[SourceQuality "1"]
[TimeControl "5400+30"]

1. e4 d5 2. exd5 Qxd5 3. Nc3 Qd8 4. d4 Nf6 5. Nf3 Bg4 6. Be2 e6 7. O-O Be7 8. Bf4 c6 9. h3 Bh5 10. g4 Bg6 11. Ne5 Nbd7 12. h4 h6 13. Nxg6 fxg6 14. Qd3 Kf7 15. h5 Nf8 16. Be5 gxh5 17. gxh5 g6 18. Kh1 Rg8 19. Rg1 g5 20. Raf1 N6d7 21. f4 Nxe5 22. fxe5+ Ke8 23. Qf3 Kd7 24. d5 exd5 25. Nxd5 Ne6 26. Rd1 {Kc7 Nf6} Qf8 {Nxg8} 1-0

[Event "18th IND-chT Women 2020"]
[Site "Ahmedabad"]
[Date "2020.02.10"]
[Round "4.12"]
[White "Aparajita, Gochhikar"]
[Black "Arpita, Mukherjee"]
[Result "0-1"]
[ECO "B14"]
[WhiteElo "1743"]
[BlackElo "2201"]
[Annotator "RC"]
[PlyCount "112"]
[EventDate "2020.02.05"]
[EventCountry "IND"]
[SourceTitle "playchess.com"]
[Source "ChessBase"]
[SourceQuality "1"]
[TimeControl "5400+30"]

1. e4 c5 2. c3 d5 3. exd5 Qxd5 4. d4 g6 5. Nf3 Bg7 6. Be3 cxd4 7. cxd4 Nf6 8. Nc3 Qd8 9. Bb5+ Bd7 10. Bxd7+ Nbxd7 11. Qb3 Nb6 12. O-O O-O 13. Rac1 e6 14. Rfd1 Nfd5 15. Nxd5 Qxd5 16. Rc7 Qxb3 17. axb3 Rab8 18. Rdc1 Nd5 19. R7c4 h6 20. Kf1 Rfd8 21. Ke2 Ne7 22. Bf4 Ra8 23. Bc7 Rd5 24. Rc5 b6 25. Rxd5 Nxd5 26. Bg3 a5 27. Ne5 g5 28. h4 f6 29. Nd3 Kf7 30. f4 f5 31. Ne5+ Bxe5 32. fxe5 a4 33. bxa4 Rxa4 34. Kd3 Rb4 35. Be1 Rxb2 36. g3 Rb3+ 37. Kc4 Rf3 38. h5 Rf1 39. Ra1 Ne7 40. Kb5 f4 41. gxf4 gxf4 42. Kxb6 f3 43. Ra3 Rxe1 44. Rxf3+ Nf5 45. Ra3 Rc1 46. Ra7+ Ne7 47. Kb5 Rc8 48. Ra6 Nf5 49. Ra7+ Kf8 50. Rd7 Ne7 51. Kb6 Kf7 52. Kb7 Rc4 53. Rd8 Nf5 54. Rd7+ Ke8 55. Rh7 Rxd4 56. Rh8+ Kf7 0-1

[Event "18th IND-chT Women 2020"]
[Site "Ahmedabad"]
[Date "2020.02.11"]
[Round "5.4"]
[White "Meenakshi Subbaraman"]
[Black "Mohota, Nisha"]
[Result "1/2-1/2"]
[ECO "D11"]
[WhiteElo "2162"]
[BlackElo "2191"]
[Annotator "ChessBase"]
[PlyCount "63"]
[EventDate "2020.02.05"]
[EventCountry "IND"]
[SourceTitle "playchess.com"]
[Source "ChessBase"]
[SourceQuality "1"]
[TimeControl "5400+30"]

1. d4 Nf6 2. Nf3 d5 3. g3 Bf5 4. Bg2 e6 5. Nbd2 h6 6. O-O Be7 7. c4 c6 8. b3 O-O 9. Bb2 a5 10. Ne5 a4 11. Bc3 a3 12. Re1 Na6 13. e4 Bh7 14. exd5 exd5 15. c5 Bxc5 16. dxc5 d4 17. Ne4 Bxe4 18. Qxd4 Bxg2 19. Kxg2 Qxd4 20. Bxd4 Rfd8 21. Nf3 Rd5 22. Rac1 Nd7 23. Rc4 Naxc5 24. Rec1 Ne6 25. Be3 c5 26. R4c2 f5 27. Rd2 Rxd2 28. Nxd2 Ne5 29. Rc3 b6 30. Nb1 Nc6 31. Rc2 Ned4 32. Rd2 1/2-1/2

[Event "18th IND-chT Women 2020"]
[Site "Ahmedabad"]
[Date "2020.02.11"]
[Round "5.11"]
[White "Anagha Yardi"]
[Black "Sheena, E.."]
[Result "0-1"]
[ECO "E90"]
[WhiteElo "1154"]
[BlackElo "1731"]
[Annotator "NA RC"]
[PlyCount "78"]
[EventDate "2020.02.05"]
[EventCountry "IND"]
[SourceTitle "playchess.com"]
[Source "ChessBase"]
[SourceQuality "1"]
[TimeControl "5400+30"]

1. d4 g6 2. c4 Bg7 3. Nc3 Nf6 4. Nf3 d6 5. e4 Nbd7 6. h3 e5 7. Be3 O-O 8. Bd3 c6 9. d5 cxd5 10. cxd5 Nh5 11. Qd2 a6 12. Bh6 Nc5 13. Bc2 Re8 14. Bxg7 Kxg7 15. b4 Nd7 16. Ne2 Nb6 17. a4 Bd7 18. Bb3 Rc8 19. Qe3 f5 20. Nd2 fxe4 21. Qxe4 Bf5 22. Qe3 Nf6 23. g4 Bc2 24. a5 Bxb3 25. Qxb3 Na8 26. O-O Nc7 27. Nc3 Rf8 28. Nde4 Nxe4 29. Nxe4 Nb5 30. Kg2 Rf4 31. f3 Nd4 32. Qd3 Rc2+ 33. Nd2 Qc8 34. Rf2 Rc3 35. Qf1 Nc2 36. Kg3 Nxa1 37. Qxa1 Rxb4 38. Qe1 Rc1 39. Qe3 Rg1+ 0-1

[Event "18th IND-chT Women 2020"]
[Site "Ahmedabad"]
[Date "2020.02.11"]
[Round "5.12"]
[White "Prajeesha K"]
[Black "Bindu, Saritha K."]
[Result "0-1"]
[ECO "D17"]
[WhiteElo "1417"]
[BlackElo "1583"]
[Annotator "NA RC"]
[PlyCount "112"]
[EventDate "2020.02.05"]
[EventCountry "IND"]
[SourceTitle "playchess.com"]
[Source "ChessBase"]
[SourceQuality "1"]
[TimeControl "5400+30"]

1. d4 d5 2. c4 c6 3. Nf3 Nf6 4. Nc3 dxc4 5. a4 Bf5 6. Ne5 Nbd7 7. Nxc4 g6 8. g3 Bg7 9. Bg2 Nb6 10. Ne5 Nbd5 11. Qb3 Qb6 12. Qxb6 axb6 13. Nxd5 cxd5 14. Bd2 O-O 15. O-O Bc2 16. Bb4 Rfe8 17. a5 bxa5 18. Rxa5 Rxa5 19. Bxa5 Rc8 20. Bb6 Ba4 21. Ra1 Bb5 22. Bc5 e6 23. Bf1 Ne4 24. Nf3 Nxc5 25. Rc1 Bd7 26. dxc5 Bxb2 27. Rb1 Ba3 28. Ne5 Rc7 29. Nxd7 Rxd7 30. e3 Bxc5 31. Bb5 Rd8 32. Bd3 b6 33. Ra1 Rd7 34. Ra4 e5 35. Bb5 Rc7 36. Kf1 d4 37. exd4 Bxd4 38. Rc4 Rxc4 39. Bxc4 Kg7 40. Ke2 f5 41. f3 Bg1 42. h3 Kf6 43. Kf1 Bc5 44. Ke2 e4 45. fxe4 fxe4 46. Bd5 Ke5 47. Bg8 h6 48. Bf7 g5 49. h4 gxh4 50. gxh4 b5 51. Bb3 Kd4 52. Be6 Bd6 53. h5 Bf4 54. Bf7 Kc3 55. Bg6 e3 56. Kd1 b4 0-1

[Event "18th IND-chT Women 2020"]
[Site "Ahmedabad"]
[Date "2020.02.12"]
[Round "6.4"]
[White "Rakshitta, Ravi"]
[Black "Bindu, Saritha K."]
[Result "1-0"]
[ECO "B01"]
[WhiteElo "2214"]
[BlackElo "1583"]
[Annotator "RC"]
[PlyCount "67"]
[EventDate "2020.02.05"]
[EventCountry "IND"]
[SourceTitle "playchess.com"]
[Source "ChessBase"]
[SourceQuality "1"]
[TimeControl "5400+30"]

1. e4 d5 2. exd5 Qxd5 3. Nc3 Qa5 4. d4 c6 5. Nf3 Nf6 6. Bc4 Bg4 7. h3 Bh5 8. Bd2 Qc7 9. g4 Bg6 10. Ne5 Nbd7 11. Qe2 e6 12. h4 Nxe5 13. dxe5 Nd5 14. h5 Bxc2 15. Rc1 Nxc3 16. Bxc3 Ba4 17. b3 Bb5 18. Bxb5 cxb5 19. Qxb5+ Qc6 20. Qxc6+ bxc6 21. Bd4 Kd7 22. Ke2 Be7 23. Rhd1 Kc7 24. Bc3 a5 25. Rd4 f6 26. Rc4 Kb8 27. h6 gxh6 28. exf6 Bd6 29. Rd1 Rd8 30. Rcd4 Kc7 31. Rxd6 Rxd6 32. Be5 Rad8 33. Rxd6 Rxd6 34. f7 1-0